fUST/lending_fUST_20250717
["ID","MTS","AMOUNT","RATE_DAILY","PERIOD"]
[372706030,1752745838901,-500.0,0.00018254,2]
[372706032,1752745838911,-151.0,0.00018254,2]
[372706034,1752745838921,-151.0,0.00018254,2]
[372706036,1752745838930,-500.0,0.00018254,2]
[372706038,1752745838939,-151.0,0.00018254,2]
[372706040,1752745838949,-151.0,0.00018254,2]
[372706042,1752745838959,-500.0,0.00018254,2]
[372706044,1752745838969,-151.0,0.00018254,2]
[372706046,1752745838978,-151.0,0.00018254,2]
[372706048,1752745838988,-184.65009936,0.00018254,2]
[372706050,1752745838998,-151.0,0.00018254,2]
[372706052,1752745839007,-500.0,0.00018254,2]
[372706054,1752745839017,-500.0,0.00018254,2]
[372706056,1752745839026,-151.0,0.00018254,2]
[372706058,1752745839035,-500.0,0.00018254,2]
[372706060,1752745839045,-1693.0,0.00018254,2]
[372706062,1752745839054,-500.0,0.00018254,2]
[372706064,1752745839063,-500.0,0.00018254,2]
[372706066,1752745839072,-151.0,0.00018254,2]
[372706068,1752745839081,-500.0,0.00018254,2]
[372706070,1752745839090,-151.0,0.00018254,2]
[372706072,1752745839099,-151.0,0.00018254,2]
[372706074,1752745839109,-460.0,0.00018305,2]
[372706076,1752745839118,-460.0,0.00018305,2]
[372706078,1752745839129,-460.0,0.00018305,2]
[372706080,1752745839138,-1652.73,0.00018305,2]
[372706082,1752745839148,-460.0,0.00018305,2]
[372706084,1752745839157,-460.0,0.00018306,2]
[372706086,1752745839166,-460.0,0.00018306,2]
[372706088,1752745839175,-460.0,0.00018306,2]
[372706090,1752745839185,-460.0,0.00018308,2]
[372706092,1752745839195,-460.0,0.00018308,2]
[372706094,1752745839205,-460.0,0.00018308,2]
[372706096,1752745839215,-460.0,0.00018308,2]
[372706098,1752745839225,-460.0,0.00018308,2]
[372706100,1752745839234,-460.0,0.00018308,2]
[372706102,1752745839244,-460.0,0.00018308,2]
[372706104,1752745839253,-255.15088434,0.00018308,2]
[372706106,1752745839262,-460.0,0.00018308,2]
[372706108,1752745839272,-460.0,0.00018308,2]
[372706110,1752745839281,-460.0,0.00018308,2]
[372706112,1752745839291,-531.50410884,0.00018308,2]
[372706114,1752745839300,-609.76387321,0.00018308,2]
[372706116,1752745839310,-460.0,0.00018308,2]
[372706118,1752745839319,-460.0,0.00018308,2]
[372706120,1752745839329,-460.0,0.00018308,2]
[372706122,1752745839339,-460.0,0.00018308,2]
[372706124,1752745839348,-460.0,0.00018308,2]
[372706126,1752745839358,-509.47,0.00018308,2]
[372706128,1752745839367,-460.0,0.00018308,2]
[372706130,1752745839378,-463.09019915,0.00018308,2]
[372706132,1752745839387,-460.0,0.00018308,2]
[372706134,1752745839396,-460.0,0.00018308,2]
[372706136,1752745839406,-460.0,0.00018308,2]
[372706138,1752745839416,-460.0,0.00018308,2]
[372706140,1752745839426,-460.0,0.00018308,2]
[372706142,1752745839435,-482.32,0.00018308,2]
[372706144,1752745839445,-460.0,0.00018308,2]
[372706146,1752745839454,-460.0,0.00018308,2]
[372706148,1752745839464,-460.0,0.00018308,2]
[372706150,1752745839473,-821.31,0.00018308,2]
[372706152,1752745839483,-460.0,0.00018308,2]
[372706154,1752745839492,-834.08,0.00018308,2]
[372706156,1752745839507,-398.57651692,0.00018308,2]
[372706160,1752745839521,-460.0,0.00018308,2]
[372706162,1752745839536,-460.0,0.00018308,2]
[372706164,1752745839551,-460.0,0.00018308,2]
[372706166,1752745839563,-460.0,0.00018308,2]
[372706169,1752745839575,-460.0,0.00018308,2]
[372706171,1752745839588,-460.0,0.00018308,2]
[372706173,1752745839601,-460.0,0.00018308,2]
[372706176,1752745839613,-460.0,0.00018308,2]
[372706178,1752745839627,-460.0,0.00018308,2]
[372706180,1752745839641,-460.0,0.00018308,2]
[372706183,1752745839654,-460.0,0.00018308,2]
[372706185,1752745839667,-247.7883824,0.00018308,2]
[372706188,1752745839681,-460.0,0.00018308,2]
[372706191,1752745839694,-977.62,0.00018308,2]
[372706193,1752745839706,-460.0,0.00018308,2]
[372706195,1752745839720,-460.0,0.00018308,2]
[372706198,1752745839733,-803.34,0.00018308,2]
[372706201,1752745839744,-460.0,0.00018308,2]
[372706203,1752745839757,-460.0,0.00018308,2]
[372706206,1752745839771,-467.41459426,0.00018308,2]
[372706208,1752745839783,-460.0,0.00018308,2]
[372706210,1752745839794,-460.0,0.00018308,2]
[372706212,1752745839805,-460.0,0.00018308,2]
[372706215,1752745839817,-460.0,0.00018308,2]
[372706217,1752745839829,-1751.53,0.00018308,2]
[372706219,1752745839842,-621.7,0.00018308,2]
[372706222,1752745839854,-460.0,0.00018308,2]
[372706224,1752745839867,-460.0,0.00018308,2]
[372706226,1752745839881,-460.0,0.00018308,2]
[372706229,1752745839895,-460.0,0.00018308,2]
[372706231,1752745839908,-5369.02,0.00018308,2]
[372706233,1752745839921,-460.0,0.00018308,2]
[372706236,1752745839934,-460.0,0.00018308,2]
[372706238,1752745839945,-1475.65,0.00018308,2]
[372706240,1752745839955,-460.0,0.00018308,2]
[372706242,1752745839965,-460.0,0.00018308,2]
[372706244,1752745839975,-460.0,0.00018308,2]
[372706246,1752745839987,-460.0,0.00018308,2]
[372706249,1752745840001,-460.0,0.00018308,2]
[372706251,1752745840013,-460.0,0.00018308,2]
[372706253,1752745840025,-1601.92,0.00018308,2]
[372706255,1752745840035,-460.0,0.00018308,2]
[372706258,1752745840046,-460.0,0.00018308,2]
[372706260,1752745840058,-460.0,0.00018308,2]
[372706262,1752745840071,-460.0,0.00018308,2]
[372706264,1752745840082,-460.0,0.00018308,2]
[372706266,1752745840093,-460.0,0.00018308,2]
[372706268,1752745840103,-1799.59,0.00018308,2]
[372706271,1752745840114,-658.3,0.00018308,2]
[372706273,1752745840127,-460.0,0.00018308,2]
[372706275,1752745840138,-460.0,0.00018308,2]
[372706277,1752745840150,-460.0,0.00018308,2]
[372706279,1752745840161,-460.0,0.00018308,2]
[372706281,1752745840172,-460.0,0.00018308,2]
[372706284,1752745840184,-460.0,0.00018308,2]
[372706286,1752745840195,-272.9956442,0.00018308,2]
[372706288,1752745840206,-460.0,0.00018308,2]
[372706290,1752745840217,-460.0,0.00018308,2]
[372706292,1752745840228,-460.0,0.00018308,2]
[372706294,1752745840239,-1610.03,0.00018308,2]
[372706296,1752745840251,-460.0,0.00018308,2]
[372706299,1752745840261,-2915.87,0.00018308,2]
[372706301,1752745840273,-460.0,0.00018308,2]
[372706303,1752745840284,-463.35653965,0.00018308,2]
[372706305,1752745840295,-460.0,0.00018308,2]
[372706307,1752745840307,-460.0,0.00018308,2]
[372706309,1752745840318,-466.21096912,0.00018308,2]
[372706312,1752745840330,-460.0,0.00018308,2]
[372706314,1752745840341,-234.24,0.0001831,2]
[372706316,1752745840352,-460.0,0.0001831,2]
[372706318,1752745840363,-460.0,0.0001831,2]
[372706320,1752745840375,-460.0,0.0001831,2]
[372706322,1752745840386,-460.0,0.0001831,2]
[372706324,1752745840397,-460.0,0.0001831,2]
[372706326,1752745840408,-460.0,0.0001831,2]
[372706328,1752745840419,-460.0,0.0001831,2]
[372706330,1752745840430,-752.21,0.0001831,2]
[372706332,1752745840442,-460.0,0.0001831,2]
[372706334,1752745840453,-460.0,0.0001831,2]
[372706337,1752745840464,-460.0,0.0001831,2]
[372706339,1752745840475,-460.0,0.0001831,2]
[372706341,1752745840486,-460.0,0.0001831,2]
[372706343,1752745840497,-460.0,0.0001831,2]
[372706345,1752745840509,-460.0,0.0001831,2]
[372706347,1752745840521,-460.0,0.0001831,2]
[372706350,1752745840533,-460.0,0.0001831,2]
[372706352,1752745840545,-460.0,0.0001831,2]
[372706354,1752745840556,-460.0,0.0001831,2]
[372706356,1752745840569,-460.0,0.0001831,2]
[372706358,1752745840579,-460.0,0.0001831,2]
[372706360,1752745840590,-460.0,0.0001831,2]
[372706362,1752745840601,-460.0,0.0001831,2]
[372706364,1752745840613,-460.0,0.0001831,2]
[372706366,1752745840624,-460.0,0.0001831,2]
[372706368,1752745840636,-460.0,0.0001831,2]
[372706371,1752745840650,-460.0,0.0001831,2]
[372706373,1752745840661,-1909.40757082,0.0001838,2]
[372706375,1752745840672,-690.87640864,0.00018384,2]
[372706377,1752745840683,-460.0,0.0001841,2]
[372706379,1752745840694,-460.0,0.0001841,2]
[372706381,1752745840705,-470.28413226,0.0001841,2]
[372706383,1752745840718,-500.0,0.00018433,2]
[372706386,1752745840729,-500.0,0.00018433,2]
[372706388,1752745840741,-500.0,0.00018433,2]
[372706390,1752745840751,-500.0,0.00018433,2]
[372706392,1752745840762,-500.0,0.00018458,2]
[372706394,1752745840773,-500.0,0.00018458,2]
[372706396,1752745840784,-209.25719956,0.00018458,2]
[372706398,1752745840795,-500.0,0.00018458,2]
[372706401,1752745840806,-468.51044187,0.00018458,2]
[372706403,1752745840817,-500.0,0.00018458,2]
[372706405,1752745840829,-460.0,0.0001848,2]
[372706407,1752745840840,-3422.99,0.0001848,2]
[372706409,1752745840851,-460.0,0.00018481,2]
[372706412,1752745840862,-257.690652,0.00018481,2]
[372706414,1752745840872,-286.55947939,0.00018481,2]
[372706416,1752745840882,-460.0,0.00018481,2]
[372706418,1752745840891,-4758.58,0.00018481,2]
[372706420,1752745840901,-460.0,0.00018481,2]
[372706422,1752745840911,-2674.7,0.00018481,2]
[372706424,1752745840920,-368.23,0.00018481,2]
[372706426,1752745840930,-761.9,0.00018481,2]
[372706428,1752745840940,-460.0,0.00018481,2]
[372706429,1752745840949,-460.0,0.00018481,2]
[372706431,1752745840965,-3502.47,0.00018481,2]
[372706433,1752745840975,-460.0,0.00018481,2]
[372706435,1752745840985,-2683.97,0.00018481,2]
[372706438,1752745840995,-460.0,0.00018481,2]
[372706440,1752745841004,-1161.67,0.00018481,2]
[372706442,1752745841014,-460.0,0.00018481,2]
[372706444,1752745841024,-659.41,0.00018481,2]
[372706464,1752745841216,-460.0,0.00018481,2]
[372706467,1752745841234,-460.0,0.00018481,2]
[372706470,1752745841251,-460.0,0.00018482,2]
[372706472,1752745841261,-460.0,0.00018482,2]
[372706473,1752745841270,-759.65,0.00018482,2]
[372706474,1752745841279,-460.0,0.00018482,2]
[372706475,1752745841288,-678.7,0.00018482,2]
[372706476,1752745841298,-460.0,0.00018482,2]
[372706477,1752745841308,-460.0,0.00018482,2]
[372706478,1752745841317,-460.0,0.00018482,2]
[372706479,1752745841326,-460.0,0.00018482,2]
[372706480,1752745841335,-460.0,0.00018482,2]
[372706481,1752745841344,-392.35597529,0.00018482,2]
[372706482,1752745841353,-4405.08,0.00018482,2]
[372706483,1752745841362,-206.87878268,0.00018483,2]
[372706484,1752745841373,-473.94054491,0.00018483,2]
[372706485,1752745841382,-460.0,0.00018483,2]
[372706486,1752745841391,-460.0,0.00018483,2]
[372706487,1752745841400,-460.0,0.00018483,2]
[372706488,1752745841409,-460.0,0.00018483,2]
[372706489,1752745841418,-460.0,0.00018483,2]
[372706490,1752745841428,-460.0,0.00018483,2]
[372706491,1752745841437,-940.09,0.00018483,2]
[372706492,1752745841447,-460.0,0.00018483,2]
[372706493,1752745841456,-1239.96,0.00018483,2]
[372706494,1752745841465,-460.0,0.00018483,2]
[372706495,1752745841475,-460.0,0.00018483,2]
[372706496,1752745841484,-460.0,0.00018483,2]
[372706497,1752745841493,-460.0,0.00018483,2]
[372706498,1752745841502,-538.65,0.00018483,2]
[372706499,1752745841510,-721.61,0.00018483,2]
[372706500,1752745841519,-694.55,0.00018483,2]
[372706501,1752745841528,-460.0,0.00018483,2]
[372706502,1752745841537,-1034.96,0.00018483,2]
[372706503,1752745841546,-460.0,0.00018483,2]
[372706504,1752745841555,-601.15,0.00018483,2]
[372706505,1752745841564,-460.0,0.00018483,2]
[372706506,1752745841573,-460.0,0.00018483,2]
[372706507,1752745841582,-460.0,0.00018483,2]
[372706508,1752745841591,-460.0,0.00018483,2]
[372706509,1752745841601,-460.0,0.00018483,2]
[372706510,1752745841610,-460.0,0.00018483,2]
[372706511,1752745841619,-460.0,0.00018483,2]
[372706512,1752745841631,-500.0,0.00018483,2]
[372706513,1752745841642,-536.61812896,0.00018484,2]
[372706514,1752745841651,-151.0,0.000185,2]
[372706515,1752745841660,-1865.0,0.00018528,2]
[372706517,1752745841670,-151.0,0.00018528,2]
[372706518,1752745841679,-199.48917632,0.00018528,2]
[372706519,1752745841690,-151.0,0.00018528,2]
[372706521,1752745841702,-500.0,0.00018528,2]
[372706523,1752745841712,-151.0,0.00018528,2]
[372706525,1752745841725,-151.0,0.00018528,2]
[372706527,1752745841735,-500.0,0.00018528,2]
[372706529,1752745841746,-151.0,0.00018528,2]
[372706532,1752745841755,-151.0,0.00018528,2]
[372706533,1752745841764,-500.0,0.00018528,2]
[372706535,1752745841773,-191.13645195,0.00018528,2]
[372706537,1752745841783,-201.71044239,0.00018528,2]
[372706539,1752745841792,-236.66958099,0.00018528,2]
[372706541,1752745841802,-500.0,0.00018528,2]
[372706543,1752745841812,-500.0,0.00018528,2]
[372706545,1752745841822,-500.0,0.00018528,2]
[372706547,1752745841831,-1693.0,0.00018528,2]
[372706549,1752745841841,-500.0,0.00018528,2]
[372706551,1752745841850,-500.0,0.00018528,2]
[372706553,1752745841860,-151.0,0.00018528,2]
[372706555,1752745841869,-500.0,0.00018528,2]
[372706558,1752745841882,-151.0,0.00018528,2]
[372706560,1752745841892,-151.0,0.00018528,2]
[372706562,1752745841901,-460.0,0.00018579,2]
[372706564,1752745841910,-460.0,0.00018579,2]
[372706566,1752745841919,-460.0,0.00018579,2]
[372706567,1752745841929,-1652.73,0.00018579,2]
[372706569,1752745841938,-460.0,0.00018579,2]
[372706572,1752745841949,-460.0,0.0001858,2]
[372706574,1752745841958,-460.0,0.0001858,2]
[372706575,1752745841967,-460.0,0.0001858,2]
[372706577,1752745841976,-460.0,0.00018582,2]
[372706580,1752745841986,-218.51068345,0.00018582,2]
[372706582,1752745841995,-460.0,0.00018582,2]
[372706584,1752745842005,-256.35568795,0.00018582,2]
[372706586,1752745842014,-347.84,0.00018582,2]
[372706587,1752745842023,-460.0,0.00018582,2]
[372706589,1752745842033,-460.0,0.00018582,2]
[372706591,1752745842042,-460.0,0.00018582,2]
[372706593,1752745842051,-460.0,0.00018582,2]
[372706595,1752745842061,-460.0,0.00018582,2]
[372706598,1752745842070,-460.0,0.00018582,2]
[372706599,1752745842080,-509.47,0.00018582,2]
[372706601,1752745842089,-460.0,0.00018582,2]
[372706603,1752745842099,-460.0,0.00018582,2]
[372706605,1752745842108,-460.0,0.00018582,2]
[372706607,1752745842118,-460.0,0.00018582,2]
[372706610,1752745842131,-460.0,0.00018582,2]
[372706612,1752745842141,-482.32,0.00018582,2]
[372706614,1752745842151,-460.0,0.00018582,2]
[372706616,1752745842160,-821.31,0.00018582,2]
[372706618,1752745842169,-460.0,0.00018582,2]
[372706619,1752745842178,-834.08,0.00018582,2]
[372706622,1752745842195,-460.0,0.00018582,2]
[372706624,1752745842204,-212.21798591,0.00018582,2]
[372706626,1752745842212,-460.0,0.00018582,2]
[372706627,1752745842222,-460.0,0.00018582,2]
[372706630,1752745842232,-460.0,0.00018582,2]
[372706631,1752745842242,-460.0,0.00018582,2]
[372706633,1752745842251,-473.89496995,0.00018582,2]
[372706635,1752745842260,-460.0,0.00018582,2]
[372706637,1752745842270,-460.0,0.00018582,2]
[372706639,1752745842279,-460.0,0.00018582,2]
[372706641,1752745842288,-977.62,0.00018582,2]
[372706643,1752745842298,-460.0,0.00018582,2]
[372706645,1752745842308,-803.34,0.00018582,2]
[372706647,1752745842316,-460.0,0.00018582,2]
[372706649,1752745842325,-460.0,0.00018582,2]
[372706651,1752745842335,-460.0,0.00018582,2]
[372706653,1752745842344,-460.0,0.00018582,2]
[372706655,1752745842354,-1751.53,0.00018582,2]
[372706657,1752745842364,-621.7,0.00018582,2]
[372706659,1752745842374,-460.0,0.00018582,2]
[372706661,1752745842383,-460.0,0.00018582,2]
[372706663,1752745842392,-460.0,0.00018582,2]
[372706665,1752745842401,-5369.02,0.00018582,2]
[372706667,1752745842410,-460.0,0.00018582,2]
[372706669,1752745842420,-460.0,0.00018582,2]
[372706671,1752745842429,-1475.65,0.00018582,2]
[372706673,1752745842438,-460.0,0.00018582,2]
[372706675,1752745842448,-1601.92,0.00018582,2]
[372706677,1752745842458,-460.0,0.00018582,2]
[372706679,1752745842468,-460.0,0.00018582,2]
[372706681,1752745842477,-1799.59,0.00018582,2]
[372706683,1752745842486,-658.3,0.00018582,2]
[372706685,1752745842496,-460.0,0.00018582,2]
[372706687,1752745842505,-591.67124093,0.00018582,2]
[372706689,1752745842515,-460.0,0.00018582,2]
[372706691,1752745842524,-1610.03,0.00018582,2]
[372706693,1752745842533,-460.0,0.00018582,2]
[372706695,1752745842543,-2915.87,0.00018582,2]
[372706697,1752745842552,-460.0,0.00018582,2]
[372706699,1752745842562,-283.62870836,0.00018582,2]
[372706701,1752745842571,-460.0,0.00018582,2]
[372706703,1752745842581,-460.0,0.00018584,2]
[372706705,1752745842590,-460.0,0.00018584,2]
[372706707,1752745842600,-460.0,0.00018584,2]
[372706710,1752745842610,-460.0,0.00018584,2]
[372706712,1752745842620,-752.21,0.00018584,2]
[372706714,1752745842632,-460.0,0.00018584,2]
[372706716,1752745842647,-460.0,0.00018584,2]
[372706718,1752745842661,-460.0,0.00018584,2]
[372706720,1752745842671,-460.0,0.00018584,2]
[372706722,1752745842681,-460.0,0.00018584,2]
[372706724,1752745842692,-237.17240886,0.00018584,2]
[372706726,1752745842701,-460.0,0.00018584,2]
[372706729,1752745842711,-460.0,0.00018584,2]
[372706731,1752745842721,-460.0,0.00018584,2]
[372706734,1752745842731,-511.9516689,0.00018584,2]
[372706736,1752745842740,-460.0,0.00018584,2]
[372706739,1752745842750,-460.0,0.00018584,2]
[372706741,1752745842759,-460.0,0.00018584,2]
[372706744,1752745842769,-460.0,0.00018584,2]
[372706746,1752745842778,-460.0,0.00018584,2]
[372706749,1752745842787,-1000.0,0.00018621,2]
[372706751,1752745842797,-460.0,0.00018684,2]
[372706754,1752745842808,-25000.0,0.00018697,2]
[372706756,1752745842818,-207.4,0.00018697,2]
[372706759,1752745842828,-280.55485677,0.00018697,2]
[372706762,1752745842838,-460.0,0.00018754,2]
[372706764,1752745842847,-3422.99,0.00018754,2]
[372706767,1752745842856,-460.0,0.00018755,2]
[372706769,1752745842865,-460.0,0.00018755,2]
[372706772,1752745842876,-4758.58,0.00018755,2]
[372706775,1752745842885,-2674.7,0.00018755,2]
[372706778,1752745842895,-761.9,0.00018755,2]
[372706780,1752745842905,-460.0,0.00018755,2]
[372706782,1752745842914,-460.0,0.00018755,2]
[372706784,1752745842924,-3502.47,0.00018755,2]
[372706787,1752745842934,-2683.97,0.00018755,2]
[372706789,1752745842945,-460.0,0.00018755,2]
[372706791,1752745842955,-1161.67,0.00018755,2]
[372706793,1752745842969,-659.41,0.00018755,2]
[372706795,1752745842980,-460.0,0.00018755,2]
[372706797,1752745842989,-460.0,0.00018756,2]
[372706799,1752745842999,-460.0,0.00018756,2]
[372706801,1752745843009,-759.65,0.00018756,2]
[372706803,1752745843018,-460.0,0.00018756,2]
[372706805,1752745843028,-678.7,0.00018756,2]
[372706807,1752745843039,-460.0,0.00018756,2]
[372706809,1752745843049,-460.0,0.00018756,2]
[372706811,1752745843058,-460.0,0.00018756,2]
[372706813,1752745843068,-460.0,0.00018756,2]
[372706815,1752745843077,-4405.08,0.00018756,2]
[372706817,1752745843087,-500.0,0.00018757,2]
[372706819,1752745843097,-460.0,0.00018757,2]
[372706821,1752745843106,-460.0,0.00018757,2]
[372706823,1752745843115,-460.0,0.00018757,2]
[372706825,1752745843125,-460.0,0.00018757,2]
[372706827,1752745843134,-460.0,0.00018757,2]
[372706829,1752745843144,-460.0,0.00018757,2]
[372706831,1752745843154,-940.09,0.00018757,2]
[372706833,1752745843164,-460.0,0.00018757,2]
[372706835,1752745843174,-1239.96,0.00018757,2]
[372706837,1752745843184,-495.78,0.00018757,2]
[372706839,1752745843193,-460.0,0.00018757,2]
[372706841,1752745843203,-460.0,0.00018757,2]
[372706843,1752745843213,-538.65,0.00018757,2]
[372706845,1752745843222,-721.61,0.00018757,2]
[372706847,1752745843231,-694.55,0.00018757,2]
[372706848,1752745843241,-460.0,0.00018757,2]
[372706850,1752745843251,-1034.96,0.00018757,2]
[372706852,1752745843260,-460.0,0.00018757,2]
[372706854,1752745843269,-601.15,0.00018757,2]
[372706856,1752745843280,-460.0,0.00018757,2]
[372706858,1752745843290,-460.0,0.00018757,2]
[372706860,1752745843300,-460.0,0.00018757,2]
[372706862,1752745843310,-460.0,0.00018757,2]
[372706864,1752745843319,-460.0,0.00018757,2]
[372706866,1752745843329,-396.20854908,0.00018796,2]
[372706868,1752745843338,-1865.0,0.00018802,2]
[372706870,1752745843348,-151.0,0.00018802,2]
[372706872,1752745843358,-253.00556288,0.00018802,2]
[372706874,1752745843368,-500.0,0.00018802,2]
[372706877,1752745843379,-151.0,0.00018802,2]
[372706880,1752745843389,-151.0,0.00018802,2]
[372706883,1752745843399,-500.0,0.00018802,2]
[372706886,1752745843409,-151.0,0.00018802,2]
[372706888,1752745843419,-151.87870992,0.00018802,2]
[372706890,1752745843428,-198.0,0.00018802,2]
[372706892,1752745843438,-500.0,0.00018802,2]
[372706894,1752745843447,-362.12151948,0.00018802,2]
[372706896,1752745843457,-500.0,0.00018802,2]
[372706898,1752745843466,-1693.0,0.00018802,2]
[372706900,1752745843475,-500.0,0.00018802,2]
[372706902,1752745843485,-500.0,0.00018802,2]
[372706904,1752745843494,-198.2206126,0.00018802,2]
[372706906,1752745843504,-500.0,0.00018802,2]
[372706908,1752745843514,-260.21401573,0.00018802,2]
[372706910,1752745843523,-152.99582741,0.00018802,2]
[372706912,1752745843533,-500.0,0.00018838,2]
[372706914,1752745843542,-460.0,0.00018853,2]
[372706916,1752745843552,-460.0,0.00018853,2]
[372706918,1752745843562,-460.0,0.00018853,2]
[372706920,1752745843571,-1652.73,0.00018853,2]
[372706922,1752745843581,-460.0,0.00018853,2]
[372706924,1752745843590,-460.0,0.00018854,2]
[372706926,1752745843600,-460.0,0.00018854,2]
[372706928,1752745843609,-460.0,0.00018856,2]
[372706930,1752745843618,-460.0,0.00018856,2]
[372706932,1752745843631,-460.0,0.00018856,2]
[372706934,1752745843643,-460.0,0.00018856,2]
[372706936,1752745843652,-460.0,0.00018856,2]
[372706938,1752745843662,-460.0,0.00018856,2]
[372706940,1752745843671,-460.0,0.00018856,2]
[372706941,1752745843680,-509.47,0.00018856,2]
[372706943,1752745843691,-460.0,0.00018856,2]
[372706945,1752745843700,-460.0,0.00018856,2]
[372706947,1752745843710,-460.0,0.00018856,2]
[372706949,1752745843721,-460.0,0.00018856,2]
[372706951,1752745843730,-482.32,0.00018856,2]
[372706953,1752745843739,-460.0,0.00018856,2]
[372706955,1752745843749,-821.31,0.00018856,2]
[372706957,1752745843758,-460.0,0.00018856,2]
[372706959,1752745843767,-834.08,0.00018856,2]
[372706961,1752745843777,-460.0,0.00018856,2]
[372706963,1752745843786,-460.0,0.00018856,2]
[372706965,1752745843795,-460.0,0.00018856,2]
[372706967,1752745843806,-460.0,0.00018856,2]
[372706969,1752745843815,-460.0,0.00018856,2]
[372706971,1752745843825,-460.0,0.00018856,2]
[372706973,1752745843834,-460.0,0.00018856,2]
[372706975,1752745843845,-977.62,0.00018856,2]
[372706977,1752745843855,-460.0,0.00018856,2]
[372706979,1752745843865,-803.34,0.00018856,2]
[372706981,1752745843878,-460.0,0.00018856,2]
[372706983,1752745843889,-460.0,0.00018856,2]
[372706985,1752745843898,-460.0,0.00018856,2]
[372706987,1752745843908,-460.0,0.00018856,2]
[372706989,1752745843919,-1751.53,0.00018856,2]
[372706990,1752745843929,-621.7,0.00018856,2]
[372706993,1752745843939,-460.0,0.00018856,2]
[372706994,1752745843950,-460.0,0.00018856,2]
[372706996,1752745843959,-460.0,0.00018856,2]
[372706998,1752745843969,-5369.02,0.00018856,2]
[372707001,1752745843980,-460.0,0.00018856,2]
[372707003,1752745843990,-460.0,0.00018856,2]
[372707005,1752745844000,-1475.65,0.00018856,2]
[372707007,1752745844010,-1601.92,0.00018856,2]
[372707008,1752745844020,-460.0,0.00018856,2]
[372707010,1752745844030,-460.0,0.00018856,2]
[372707012,1752745844039,-1799.59,0.00018856,2]
[372707014,1752745844049,-658.3,0.00018856,2]
[372707016,1752745844059,-460.0,0.00018856,2]
[372707019,1752745844069,-460.0,0.00018856,2]
[372707021,1752745844080,-1610.03,0.00018856,2]
[372707023,1752745844091,-303.44,0.00018856,2]
[372707024,1752745844100,-2915.87,0.00018856,2]
[372707026,1752745844110,-460.0,0.00018856,2]
[372707028,1752745844120,-460.0,0.00018858,2]
[372707030,1752745844134,-460.0,0.00018858,2]
[372707032,1752745844144,-460.0,0.00018858,2]
[372707034,1752745844154,-752.21,0.00018858,2]
[372707036,1752745844164,-460.0,0.00018858,2]
[372707038,1752745844173,-460.0,0.00018858,2]
[372707039,1752745844182,-470.97988062,0.00018858,2]
[372707040,1752745844191,-460.0,0.00018858,2]
[372707041,1752745844201,-460.0,0.00018858,2]